Cogmind - Beta 13 @@@ ROGUE MODE // 2024.04.01 @ 20:53:18 Player: Cinnaquill Result: Destroyed by Y-45 Defender with Heavy Assault Rifle Performance ------------- Evolutions (2) 1000 Regions Visited (5) 1000 Robots Destroyed (51) 255 Value Destroyed (1627) 1627 Prototype IDs (9) 180 Alien Tech Used (0) 0 Bonus (-6) -6 TOTAL SCORE: 4056 Bonus ------- Friendly Fire -6 Cogmind --------- Core Integrity 0/550 Matter 300/300 Energy 54/100 System Corruption 0% Temperature Cool (49) Movement Walking (120) Location -8/Storage Parts ------- > --- POWER (2) -------- (None) > --- PROPULSION (3) --- Aluminum Leg Carbon-fiber Leg > --- UTILITY (3) ------ Improved Heat Sink Advanced Targeting Computer Hacking Suite > --- WEAPON (3) ------- Advanced Beam Rifle > --- INVENTORY (5) ---- Improved Ion Engine Aluminum Leg Heat Sink Mini Grenade Launcher Peak State ------------ > --- POWER ------------ Light Nuclear Core > --- PROPULSION ------- Aluminum Leg Aluminum Leg Titanium Leg > --- UTILITY ---------- Improved Heat Sink Advanced Targeting Computer Hacking Suite > --- WEAPON ----------- Improved EM Shotgun Heavy EM Shotgun Advanced Beam Rifle > --- INVENTORY -------- Aluminum Leg Aluminum Leg Heat Sink [Rating: 28] Favorites ----------- Power Light Ion Engine Engine Light Ion Engine Power Core Light Nuclear Core Propulsion Aluminum Leg Treads Light Treads Leg Aluminum Leg Wheel Wheel Utility Large Storage Unit Device Heat Sink Storage Large Storage Unit Processor Advanced Targeting Computer Hackware Hacking Suite Protection Hardened Medium Armor Plating Weapon Assault Rifle Energy Gun Improved EM Shotgun Energy Cannon Heavy Particle Cannon Ballistic Gun Assault Rifle Ballistic Cannon Improved Light Cannon Launcher Grenade Launcher Special Weapon Mining Laser Build | -11 -10 -10 -9 -8 -8 ------- Run | Yrd Mat Min Mat Mat Sto Slots Evolved 4 | . . . 2 2 . Power 1 | . . . 1 . . Propulsion 1 | . . . . 1 . Utility 1 | . . . 1 . . Weapon 1 | . . . . 1 . Parts Attached 58 | 6 4 1 15 30 2 Power 15 | 1 . 1 7 5 1 Engine 13 | 1 . 1 7 3 1 Core 2 | . . . . 2 . Reactor . | . . . . . . Propulsion 12 | 2 . . 2 7 1 Treads 3 | 2 . . . 1 . Leg 6 | . . . . 5 1 Wheel 3 | . . . 2 1 . Hover . | . . . . . . Flight . | . . . . . . Utility 14 | 1 2 . 2 9 . Device 5 | . 1 . 1 3 . Storage 3 | 1 1 . 1 . . Processor 2 | . . . . 2 . Hackware 1 | . . . . 1 . Protection 3 | . . . . 3 . Artifact . | . . . . . . Weapon 17 | 2 2 . 4 9 . Energy Gun 8 | 2 . . 1 5 . Energy Cannon 1 | . . . . 1 . Ballistic Gun 2 | . 1 . 1 . . Ballistic Cannon 3 | . . . 1 2 . Launcher 2 | . 1 . . 1 . Special Weapon 1 | . . . 1 . . Impact Weapon . | . . . . . . Slashing Weapon . | . . . . . . Piercing Weapon . | . . . . . . Special Melee Weapon . | . . . . . . Unidentified Prototypes 4 | . . . 1 3 . Parts Lost 23 | . . . 7 10 6 Power 8 | . . . 2 3 3 Propulsion 5 | . . . 2 2 1 Utility 3 | . . . 1 2 . Weapon 7 | . . . 2 3 2 Highest Loss Streak 7 | . . . 7 3 6 To Critical Strikes . | . . . . . . Average Slot Usage (%) 93 | . 94 100 96 86 96 Engine 13 | . 14 14 20 7 16 Treads 10 | . 28 28 4 . . Leg 9 | . . . . 19 26 Wheel 5 | . . . 16 5 . Device 9 | . 9 14 13 4 9 Storage 10 | . 14 14 19 5 . Processor 4 | . . . . 8 9 Hackware 2 | . . . . 4 9 Protection 1 | . . . . 2 . Energy Gun 12 | . 10 . 6 18 25 Ballistic Gun 4 | . 11 14 3 . . Ballistic Cannon 3 | . . . 6 4 . Launcher 4 | . 6 14 2 . . Naked Turns . | . . . . . . Heaviest Build 61 | 11 29 31 58 61 16 Greatest Support 40 | 40 40 40 40 37 35 Greatest Overweight (x) 4 | . . . 2 4 . Average Overweight (x) . | . . . 1 . . Largest Inventory Capacity 15 | 8 15 15 15 15 5 Average Capacity 11 | 6 9 15 15 10 5 Most Carried 12 | 5 5 7 10 12 5 Average Carried 5 | 3 3 5 5 5 3 Final Capacity 15 | 8 15 15 15 5 5 Final Carried 7 | 4 4 7 5 3 4 Class Distribution -------------------- 64% | Mutant 27% | Scavenger-Gunner 7% | Gunner Dominant Class ---------------- Mutant | -10/Materials Mutant | -10/Mines Mutant | -9/Materials Scavenger-Gunner | -8/Materials Scavenger-Gunner | -8/Storage Resources | -11 -10 -10 -9 -8 -8 ----------- Run | Yrd Mat Min Mat Mat Sto Matter Collected 986 | 221 152 56 135 422 . Remotely . | . . . . . . Salvage Created 1747 | 61 205 46 234 842 359 Parts 103 | 1 8 2 24 40 28 Haulers Intercepted 2 | . . . . 2 . Recyclers Shooed 2 | . . . 1 . 1 Parts Field Recycled . | . . . . . . Retrieved Matter . | . . . . . . Parts Self-Destructed . | . . . . . . Prevented . | . . . . . . Kills | -11 -10 -10 -9 -8 -8 ------- Run | Yrd Mat Min Mat Mat Sto Combat Hostiles Destroyed 37 | . 5 2 10 14 6 Guns 19 | . 4 1 2 7 5 Cannons 7 | . . . 2 5 . AOE 11 | . 1 1 6 2 1 Classes Destroyed 11 | 1 1 . 5 2 2 Worker 3 | . . . 1 2 . Builder 4 | . . . 1 3 . Tunneler 2 | . . . 1 1 . Hauler 2 | . . . . 2 . Recycler 2 | 1 . . . 1 . Operator 1 | . . . . . 1 Swarmer 2 | . . . 2 . . Grunt 27 | . 5 2 7 11 2 Duelist 1 | . . . . 1 . Sentry 6 | . . . 1 2 3 Hunter 1 | . . . . . 1 Best Kill Streak 10 | 1 2 2 10 8 4 Combat Bots Only 8 | . 2 2 8 3 4 Max Kills in Single Turn 4 | 1 1 1 4 2 2 Gunslinging 1 | . . . . . 1 Exploded 2 | . 1 1 2 1 1 Melee . | . . . . . . Uniques/NPCs Destroyed . | . . . . . . Combat | -11 -10 -10 -9 -8 -8 -------- Run | Yrd Mat Min Mat Mat Sto Hostile Shots Fired 321 | . 23 5 57 177 59 Missed 85 | . 6 1 13 52 13 Damage Taken 3760 | . 220 109 605 2115 711 Core 723 | . . 29 141 419 134 Absorbed by Shields . | . . . . . . Regen/Repaired (Parts) 33 | . . . 33 . . Core Remaining (%) 84 | 100 . 88 64 . . Volleys Fired 112 | 3 23 4 15 49 18 Largest 3 | 2 2 2 2 3 3 Hottest 160 | 80 60 50 120 160 156 Shots Fired 215 | 6 35 8 25 99 42 Gun 164 | 6 34 4 11 67 42 Cannon 34 | . . . 5 29 . Launcher 16 | . 1 4 8 3 . Special 1 | . . . 1 . . Kinetic 60 | . 23 4 11 22 . Thermal 63 | 3 . . 1 41 18 Explosive 16 | . 1 4 8 3 . Electromagnetic 76 | 3 11 . 5 33 24 Robot Hit Streak 15 | 3 6 8 5 15 8 Robot Miss Streak 3 | 1 2 . 3 3 2 Penetration Max . | . . . . . . Secondary Targets 2 | . 1 . . . 1 Max Gunslinging Chain 1 | . 1 . . . 1 Shots Hit Robots 141 | 4 22 7 11 69 28 Core Hits 107 | 2 11 5 23 51 15 Critical Kills . | . . . . . . Critical Parts Destroyed . | . . . . . . Critical Strikes 1 | . . . . . 1 Burn 1 | . . . . . 1 Melee Attacks . | . . . . . . Impact . | . . . . . . Slashing . | . . . . . . Piercing . | . . . . . . Sneak Attacks . | . . . . . . Combat Hostiles . | . . . . . . Follow-up Attacks . | . . . . . . Damage Inflicted 3486 | 46 299 178 734 1689 540 Guns 1810 | 46 245 45 92 905 477 Cannons 442 | . . . 23 419 . Explosions 1154 | . 54 133 595 318 54 Melee . | . . . . . . Ramming 56 | . . . . 47 9 Kinetic 571 | . 167 45 65 294 . Thermal 991 | 33 . . 24 700 234 Explosive 979 | . 54 133 595 197 . Electromagnetic 889 | 13 78 . 50 451 297 Impact . | . . . . . . Slashing . | . . . . . . Piercing . | . . . . . . Highest Corruption . | . . . . . . Average Corruption . | . . . . . . Corruption Purged . | . . . . . . Corruption Blocked . | . . . . . . Overload Shots . | . . . . . . Overflow Damage 45 | . . . 11 34 . Projectiles . | . . . . . . Explosions 45 | . . . 11 34 . Melee . | . . . . . . Knockbacks 1 | . . . . 1 . Impact . | . . . . . . Kinetic 1 | . . . . 1 . Secondary . | . . . . . . Self-Inflicted Damage 214 | . . 46 32 122 14 Shots 10 | . . 3 3 3 1 Rammed 3 | . . . . 3 . Targets Rammed 10 | . . . . 9 1 Kicked 7 | . . . . 6 1 Crushed . | . . . . . . Highest Temperature 672 | 9 30 . 78 672 192 Average Temperature 153 | 5 18 . 24 226 50 Received Heat Transfer 1848 | . 126 36 273 1062 351 Effects 25 | . . . . 25 . Shutdowns 3 | . . . . 3 . Energy Bleed 4 | . . . . 4 . Interference 7 | . . . . 7 . Matter Decay 1 | . . . . 1 . Short Circuit 3 | . . . . 3 . Damage (minor) 2 | . . . . 2 . Damage (major) 4 | . . . . 4 . Damage (core) 1 | . . . . 1 . Siege Activations . | . . . . . . Robots Corrupted . | . . . . . . Combat Hostiles . | . . . . . . Parts Fried 2 | . . . . 1 1 Impact Corruptions . | . . . . . . Robots Melted . | . . . . . . Combat Hostiles . | . . . . . . Parts Melted . | . . . . . . Heat Transferred 1610 | 75 . . 50 1078 407 Parts Sabotaged . | . . . . . . Parts Stolen . | . . . . . . Parts Stripped . | . . . . . . Power Chain Reactions 3 | . . . . 2 1 Alert | -11 -10 -10 -9 -8 -8 ------- Run | Yrd Mat Min Mat Mat Sto Peak Influence 386 | 5 175 155 386 342 369 Initial 102 | . 3 67 . 102 78 Average 183 | 3 87 137 256 214 189 Maximum Alert Level 1 | . . . 1 1 1 Low Security (%) 61 | 100 100 100 20 50 54 Level 1 38 | . . . 79 49 45 Level 2 . | . . . . . . Level 3 . | . . . . . . Level 4 . | . . . . . . Level 5 . | . . . . . . High Security . | . . . . . . Max Security . | . . . . . . Squads Dispatched 15 | . 1 . 4 7 3 Investigation 9 | . . . 4 3 2 Extermination . | . . . . . . Reinforcement 6 | . 1 . . 4 1 Assault . | . . . . . . Garrison . | . . . . . . Intercept . | . . . . . . Searches Triggered . | . . . . . . Construction Impeded . | . . . . . . Haulers Reinforced . | . . . . . . Active Scanning Responses . | . . . . . . Cargo Convoy Interrupts . | . . . . . . Stealth | -11 -10 -10 -9 -8 -8 --------- Run | Yrd Mat Min Mat Mat Sto Distress Signals 5 | . 1 . 1 1 2 Communications Jammed . | . . . . . . Distress Signals . | . . . . . . Times Spotted 62 | . 7 1 23 16 15 Peak Tracking Total 10 | . 2 1 10 5 7 Tactical Retreats 2 | . . . 1 . 1 Traps | -11 -10 -10 -9 -8 -8 ------- Run | Yrd Mat Min Mat Mat Sto Traps Triggered 2 | . . . 1 . 1 Indirectly . | . . . . . . Trap Hack Attempts . | . . . . . . Triggered . | . . . . . . Disarmed . | . . . . . . Reprogrammed . | . . . . . . Reused . | . . . . . . Traps Extracted . | . . . . . . Installed . | . . . . . . Triggered . | . . . . . . Machines | -11 -10 -10 -9 -8 -8 ---------- Run | Yrd Mat Min Mat Mat Sto Machines Disabled 4 | . . . 1 3 . Max in Single Turn 2 | . . . 1 2 . Machines Repaired . | . . . . . . Machines Dismantled . | . . . . . . Machines Sabotaged . | . . . . . . Overloaded Fab Kills . | . . . . . . Hacking | -11 -10 -10 -9 -8 -8 --------- Run | Yrd Mat Min Mat Mat Sto Machines Accessed 15 | . 1 1 6 4 3 Terminals 9 | . 1 . 4 2 2 Fabricators . | . . . . . . Repair Stations 1 | . . . 1 . . Recycling Units 3 | . . . . 2 1 Scanalyzers 1 | . . . 1 . . Garrison Access . | . . . . . . Total Hacks 53 | . 3 1 25 13 11 Successful 35 | . 2 1 19 7 6 Failed 18 | . 1 . 6 6 5 Catastrophic 2 | . . . 2 . . Database Lockouts . | . . . . . . Manual . | . . . . . . Terminals 34 | . 3 . 15 7 9 Fabricators . | . . . . . . Repair Stations 2 | . . . 2 . . Recycling Units 8 | . . . . 6 2 Scanalyzers 8 | . . . 8 . . Garrison Access . | . . . . . . Terminal Hacks 19 | . 2 1 9 2 5 Record 4 | . . . 3 1 . Robot Analysis 1 | . . . . . 1 Prototype ID Bank 3 | . . . 2 . 1 Open Door 1 | . . 1 . . . Recycling Unit Index 1 | . 1 . . . . Alert Level 2 | . . . . 1 1 Locate Traps 1 | . . . 1 . . Dispatch Records 1 | . . . 1 . . Hauler Manifests 1 | . 1 . . . . Zone Layout 4 | . . . 2 . 2 Fabricator Hacks . | . . . . . . Repair Station Hacks 2 | . . . 2 . . Scan Component 1 | . . . 1 . . Repair 1 | . . . 1 . . Recycling Unit Hacks 6 | . . . . 5 1 Recycle Component 2 | . . . . 2 . Process 2 | . . . . 2 . Retrieve Matter 1 | . . . . 1 . Retrieve Components 1 | . . . . . 1 Scanalyzer 8 | . . . 8 . . Insert Component 5 | . . . 5 . . Analyze 3 | . . . 3 . . Garrison Access Hacks . | . . . . . . Unauthorized Hacks . | . . . . . . Terminals . | . . . . . . Fabricators . | . . . . . . Repair Stations . | . . . . . . Recycling Units . | . . . . . . Scanalyzers . | . . . . . . Garrison Access . | . . . . . . Data Cores Recovered 1 | . . . . . 1 Used 1 | . . . . . 1 Hacking Detections 12 | . 1 . 5 4 2 Full Trace Events 10 | . . . 4 4 2 Feedback Events . | . . . . . . Feedback Blocked . | . . . . . . Robot Schematics Acquired . | . . . . . . Robots Built . | . . . . . . Authchips . | . . . . . . Time . | . . . . . . Total Robot Build Rating . | . . . . . . Part Schematics Acquired 2 | . . . 2 . . Parts Built . | . . . . . . Authchips . | . . . . . . Time . | . . . . . . Total Part Build Rating . | . . . . . . Parts Repaired 1 | . . . 1 . . Time 26 | . . . 26 . . Parts Recycled 2 | . . . . 2 . Recycled Matter 456 | . . . . 456 . Retrieved Matter 168 | . . . . 168 . Retrieved Components . | . . . . . . Parts Scanalyzed 2 | . . . 2 . . Part Schematics Acquired 2 | . . . 2 . . Parts Damaged . | . . . . . . Bothacking | -11 -10 -10 -9 -8 -8 ------------ Run | Yrd Mat Min Mat Mat Sto Used RIF Installer . | . . . . . . Robots Hacked . | . . . . . . Non-combat . | . . . . . . Combat . | . . . . . . Robot Hacks Applied . | . . . . . . Relay Couplers Released . | . . . . . . Fabnet Peak Effective % . | . . . . . . Robots Rewired . | . . . . . . Allies Hacked . | . . . . . . Hacks Repelled . | . . . . . . Allies | -11 -10 -10 -9 -8 -8 -------- Run | Yrd Mat Min Mat Mat Sto Total Allies . | . . . . . . Largest Group . | . . . . . . Highest-Rated Group . | . . . . . . Highest-Rated Ally . | . . . . . . Total Orders . | . . . . . . Ally Attacks . | . . . . . . Total Damage . | . . . . . . Kills . | . . . . . . Allies Corrupted . | . . . . . . Allies Melted . | . . . . . . Intel | -11 -10 -10 -9 -8 -8 ------- Run | Yrd Mat Min Mat Mat Sto Robot Analysis Total 1 | . . . . . 1 Derelict Logs Recovered 1 | . . 1 . . . Drone Launches 17 | . . . 17 . . Drone Recoveries 17 | . . . 17 . . Exploration | -11 -10 -10 -9 -8 -8 ------------- Run | Yrd Mat Min Mat Mat Sto Turns Passed 2543 | 88 326 447 522 943 217 Spaces Moved 1443 | 49 161 269 327 513 124 Core 13 | 13 . . . . . Treads 518 | 36 161 269 39 13 . Legs 499 | . . . . 375 124 Wheels 413 | . . . 288 125 . Hover . | . . . . . . Flight . | . . . . . . Fastest Speed 50 | 50 160 160 105 101 120 Average Speed 135 | 130 160 160 127 124 120 Slowest Speed 305 | 160 160 160 240 305 120 Overloaded Moves . | . . . . . . Propulsion Burnouts . | . . . . . . Robots Hopped . | . . . . . . Cave-ins Triggered . | . . . . . . Exploration Rate (%) 27 | 3 30 50 32 27 20 Regions Visited 5 Branch Regions 2 Pre-discovered Areas . | . . . . . . Known Exits Taken 1 | . . . 1 . . Unknown Exits Taken 4 | 1 1 1 . 1 . Scrap Searched 1 | . . 1 . . . Spaces Dug . | . . . . . . Terrain Destroyed 118 | . 6 29 36 40 7 Melee . | . . . . . . Projectile 1 | . . . . 1 . AOE 117 | . 6 29 36 39 7 Terrain Rammed . | . . . . . . Walls Destroyed . | . . . . . . Machines Disabled . | . . . . . . Actions | -11 -10 -10 -9 -8 -8 --------- Run | Yrd Mat Min Mat Mat Sto Total 1836 | 67 196 278 408 730 157 Wait 104 | . . . 26 71 7 Move 1438 | 48 160 268 326 512 124 Hop . | . . . . . . Pick Up 75 | 10 5 4 17 35 4 Fast Attach 1 | . . . . 1 . Attach 39 | 6 3 . 9 19 2 Detach 1 | . . . . 1 . Swap 18 | . 1 1 6 10 . Drop 38 | . 4 1 9 23 1 Fire 112 | 3 23 4 15 49 18 Melee . | . . . . . . Ram 1 | . . . . 1 . Kick 7 | . . . . 6 1 Crush 2 | . . . . 2 . Escape Stasis . | . . . . . . Rewire . | . . . . . . Trap . | . . . . . . Miscellaneous . | . . . . . . Route ------- -11/Scrapyard -10/Materials (discovered 2 exits: *Mat / *Min) -10/Mines -9/Materials (discovered 2 exits: *Mat / *Min) -8/Materials -8/Storage History --------- Turn | Location | Event 12 | -11/Scrapyard | Discovered new exit (range 16) 89 | -11/Scrapyard | Entered Materials 300 | -10/Materials | Build established: Mutant 309 | -10/Materials | Discovered new exit (range 11) 386 | -10/Materials | Discovered new exit (range 12) 415 | -10/Materials | Entered Mines 783 | -10/Mines | Learned 8 Materials zone layouts 813 | -10/Mines | Found the Drone Emporium 820 | -10/Mines | Found Prototype Device 840 | -10/Mines | Discovered new exit (range 11) 862 | -10/Mines | Entered Materials 862 | -9/Materials | Evolved 2 slots: Power x1, Utility x1 863 | -9/Materials | Identified exit to Materials 863 | -9/Materials | Identified exit to Mines 863 | -9/Materials | Identified Sensor Drone Bay 1003 | -9/Materials | Destroyed 8 combat bots 1012 | -9/Materials | Lost 7 parts (2p2n1u2w) 1206 | -9/Materials | Repaired Lgt. Ion Engine 1384 | -9/Materials | Entered another Materials area 1384 | -8/Materials | Evolved 2 slots: Propulsion x1, Weapon x1 1593 | -8/Materials | Lost 3 parts (1p1n1w) 1614 | -8/Materials | Core integrity fell below 50% 1725 | -8/Materials | Lost 3 parts (1p1u1w) 2134 | -8/Materials | Build established: Scavenger-Gunner 2260 | -8/Materials | Discovered new exit (range 14) 2301 | -8/Materials | Met 7R-MNS 2327 | -8/Materials | Entered Storage 2470 | -8/Storage | Core integrity fell below 20% 2544 | -8/Storage | Destroyed by Y-45 Defender with Heavy Assault Rifle Last Messages --------------- 02513_ Critical hit (Burn: +37). 02514_ Acquired Imp. Ion Engine. 02514_ Lgt. Ion Engine destroyed. 02516_ K-01 Serf collects debris. 02518_ Hvy. EM Shotgun destroyed. 02520_ Heat Sink fried. 02520_ Y-45 Defender destroyed. 02524_ K-01 Serf collects debris. 02529_ W-25 Informer sends out distress signal. 02537_ Chain reaction triggered in Lgt. Nuclear Core. 02537_ G-47 Trooper destroyed. 02539_ K-01 Serf collects debris. 02540_ T-07 Excavator is excavating. 02540_ R-06 Scavenger collects Lgt. Armor Plating. 02541_ Imp. EM Shotgun destroyed. 02541_ Lgt. Ion Engine destroyed. 02542_ K-01 Serf collects debris. 02543_ R-06 Scavenger collects Hvy. Assault Rifle. 02544_ T-07 Excavator is excavating. 02544_ Aluminum Leg destroyed. Map ----- +----------------------------------------------------+ | | | ????????????????????????#######??????????????????? | | ????????????????????????# #??????????????????? | | ????????????????????????# #??????????????????? | | ??????????????????#####?# #??????????????????? | | ??????????????????#"""#?# #??????????????????? | | ###################"Y"### #??????????????????? | | ^ # #??????????????????? | | ^ + #??????????????????? | | = % # #??????????????????? | | #########+########### # #??????????????????? | | ?????# % #?????# # #??????????????????? | | ?????# """ #?????# # #??????????????????? | | ?????# """ #?????# # #??????????????????? | | ?????# """ ##????# ###+###??????????????????? | | ?????# "#????# ### ##???????????????????? | | ?????# """ T#????# # #???????????????????? | | ?????# """[! "#????# # ???????????????????? | | ?????# """%= ##????# * # ???????????????????? | | ?????# ! #?????#=%[# #???????????????????? | | ?????### ######?????# = ## ##???????????????????? | | ???????###??????????# ## #????????????????????? | | ############????????# ## #????????????????????? | | ?????##### ## w#????????????????????? | | ############??# t # ##gg##???????????????????? | | ??????????????# ;@%[ #???????????????????? | | ???????????????# # k ;=! ###?????????????????? | | ?????????????????#### Y;%! +?????????????????? | | ????????????????????# != [ ###?????????????????? | | ????????????????????# % ;;;;##???????????????????? | | ??????????########### r!# ???????????????????? | | ??????????# # ## """???????????????????? | | ????????????????????#k #? """???????????????????? | | ????????????????????# u#? """"??????????????????? | | ????????????????????# #? ????????????????????? | | ????????????????????+ #? ?????????????????????? | | ????????????????????# #?##?????????????????????? | | ????????????????????# ????????????????????????? | | ????????????????????# ????????????????????????? | | ????????????????????# ????????????????????????? | | ????????????????????# ##???????????????????????? | | ????????????????????# #????????????????????????? | | ????????????????????# #????????????????????????? | | ????????????????????? ?????????????????????????? | | ?????????????????????????????????????????????????? | | ?????????????????????????????????????????????????? | | ?????????????????????????????????????????????????? | | ?????????????????????????????????????????????????? | | ?????????????????????????????????????????????????? | | ?????????????????????????????????????????????????? | +----------------------------------------------------+ Best States ------------- Heat Dissipation 45 Energy Generation 19 Energy Capacity 630 Matter Stores 300 Matter Capacity 300 Sight Range 16 Terrain Scan Density 10 Armor Coverage 225 Evasion (%) 55 Targeting Accuracy 8 Recoil Reduction 2 Offensive Hacking 10 Item Schematics ----------------- Wheel | -9/Materials | Scanalyzed Spread Laser | -9/Materials | Scanalyzed Robot Schematics ------------------ None Fabricated ------------ Nothing Alien Tech Used ----------------- None Achievements -------------- Dynamic Key Shopping List Challenges ------------ None Game ------ Seed MediumThiefCanceller Manual? 0 Play Time 00:37:29 Cumulative 3.4 hours Start 2024.04.01 @ 20:14:52 End 2024.04.01 @ 20:53:18 Sessions 1 Manual Loads 0 Difficulty Rogue Special Mode None Game No. 7 Rogue 5 Adventurer 2 Explorer 0 Win Type - Total 0 Types 0/0/0/0/0/0/0/0/0 Lore% 4 Gallery% 8 Achievement% 9 Wizard Run 0 Options --------- Layout 0 ASCII 0 Keyboard 0 Movement Mouse Keybinds 0 Fullscreen 1 Font 18/SmallcapsGlow Map View 76x50 Zoom Use 0% Tactical HUD 1 Map Filters NONE Filters NONE Steam 1 RUN: 32147c3e-497e-4aca-b56c-35fc0cec9f22